bitfinex/quotes_SOLUSD_20260203
["timestamp","ask_amount","ask_price","bid_price","bid_amount"]
[1770129654231,12.24506074,102.46,102.43,0.92711486]
[1770129654432,12.24506074,102.45,102.43,0.92711486]
[1770129654625,34.14634523,102.5,102.43,10.68949918]
[1770129654626,12.24506074,102.47,102.43,10.68949918]
[1770129655702,12.24506074,102.47,102.44,0.92711486]
[1770129655904,12.24506074,102.48,102.44,0.92711486]
[1770129656624,12.24506074,102.49,102.45,0.92711486]
[1770129657027,12.24506074,102.49,102.46,9.7599063]
[1770129657229,12.24506074,102.51,102.47,0.92711486]
[1770129657523,77.98779974,102.59,102.46,22.00496704]
[1770129657524,12.24506074,102.53,102.49,0.92711486]
[1770129658106,12.24506074,102.5,102.46,62.18678692]
[1770129658302,4.27527085,102.54,102.46,10.68702116]
[1770129658513,12.24506074,102.5,102.46,35.08678692]
[1770129658809,12.24506074,102.51,102.47,0.92711486]
[1770129659003,12.24506074,102.51,102.48,9.75800156]
[1770129659925,12.24506074,102.54,102.49,13.1721756]
[1770129660110,12.24506074,102.53,102.49,0.92711486]
[1770129660305,12.24506074,102.5,102.43,0.92711486]
[1770129660511,12.24506074,102.48,102.46,9.75942972]
[1770129660724,12.24506074,102.47,102.43,0.92711486]
[1770129660934,12.24506074,102.48,102.44,0.92711486]
[1770129661114,12.24506074,102.48,102.45,9.76041533]
[1770129661311,12.24506074,102.46,102.42,0.92711486]
[1770129661506,10.67374661,102.52,102.45,0.91567593]
[1770129661701,39.14134371,102.57,102.44,70.81593149]
[1770129661702,0.91908607,102.56,102.5,0.91567593]
[1770129661924,12.24506074,102.56,102.52,0.91567593]
[1770129662129,0.1402506,102.57,102.52,13.16073667]
[1770129662428,9.74801544,102.59,102.53,13.16073667]
[1770129662429,0.91908607,102.59,102.53,13.16073667]
[1770129662624,12.24506074,102.58,102.54,0.91567593]
[1770129662931,10.66533067,102.61,102.55,0.91567593]
[1770129663123,12.24506074,102.61,102.56,10.66606594]
[1770129663328,12.24506074,102.6,102.56,9.75039001]
[1770129663631,12.24506074,102.61,102.57,0.91567593]
[1770129663803,12.24506074,102.59,102.55,10.66661961]
[1770129664007,12.24506074,102.58,102.54,10.66776439]
[1770129664204,12.24506074,102.58,102.55,9.7511094]
[1770129664404,12.24506074,102.58,102.54,0.91567593]
[1770129664405,12.24506074,102.57,102.54,9.75199147]
[1770129664722,0.91908607,102.59,102.52,0.91567593]
[1770129664723,12.24506074,102.56,102.52,0.91567593]
[1770129664913,12.24506074,102.56,102.49,27.1]
[1770129664914,12.24506074,102.53,102.49,9.75654837]
[1770129665110,0.91908607,102.56,102.5,0.91567593]
[1770129665310,12.24506074,102.54,102.5,0.91567593]
[1770129665632,14.02375983,102.58,102.47,9.75835201]
[1770129665633,12.24506074,102.51,102.47,9.75835201]
[1770129665830,12.24506074,102.5,102.47,9.75835201]
[1770129666013,12.24506074,102.48,102.46,9.75960353]
[1770129666330,12.24506074,102.49,102.46,9.75960353]
[1770129666525,12.24506074,102.51,102.46,47.32010596]
[1770129666832,12.24506074,102.49,102.45,9.76028837]
[1770129667133,12.24506074,102.47,102.44,28.01567593]
[1770129667314,12.24506074,102.47,102.43,9.76222182]
[1770129667511,12.24506074,102.48,102.44,9.76153301]
[1770129667725,13.16414681,102.45,102.4,28.01567593]
[1770129668032,13.16414681,102.45,102.42,9.76311382]
[1770129668033,12.24506074,102.45,102.42,9.76311382]
[1770129668233,12.24506074,102.45,102.41,9.76424406]
[1770129668433,12.24506074,102.44,102.41,9.76424406]
[1770129668737,12.24506074,102.44,102.38,10.68225773]
[1770129668738,12.24506074,102.42,102.38,10.68225773]
[1770129668911,12.24506074,102.41,102.38,10.68225773]
[1770129669107,12.24506074,102.43,102.38,35.10108953]
[1770129670228,12.24506074,102.43,102.39,0.91567593]
[1770129671138,10.67994849,102.45,102.37,9.76846435]
[1770129671139,12.24506074,102.4,102.37,9.76846435]
[1770129671431,12.24506074,102.38,102.34,0.1]
[1770129671610,12.24506074,102.36,102.34,0.1]
[1770129671815,12.24506074,102.37,102.34,0.1]
[1770129672124,10.68471386,102.4,102.34,1.01567593]
[1770129672325,12.24506074,102.38,102.34,10.78694031]
[1770129672512,12.24506074,102.37,102.34,9.87126438]
[1770129672837,12.24506074,102.36,102.34,0.1]
[1770129673128,12.24506074,102.36,102.32,0.91567593]
[1770129673333,12.24506074,102.38,102.34,0.91567593]
[1770129673534,12.24506074,102.39,102.34,0.91567593]
[1770129673733,12.24506074,102.38,102.34,0.91567593]
[1770129673923,10.6851008,102.4,102.29,13.26073667]
[1770129673924,12.24506074,102.35,102.29,13.26073667]
[1770129674232,12.24506074,102.35,102.3,13.16073667]
[1770129674430,12.24506074,102.36,102.32,9.77324786]
[1770129675039,12.24506074,102.38,102.33,0.91567593]
[1770129675534,12.24506074,102.38,102.34,9.7713504]
[1770129675733,12.24506074,102.39,102.34,9.7713504]
[1770129675927,12.24506074,102.39,102.35,0.91567593]
[1770129676433,12.24506074,102.38,102.33,49.13694589]
[1770129676618,0.91908607,102.39,102.33,10.68756108]
[1770129676931,4.27527085,102.41,102.35,0.91567593]
[1770129676932,12.24506074,102.4,102.35,0.91567593]
[1770129677133,12.24506074,102.39,102.35,0.91567593]
[1770129677741,12.24506074,102.39,102.36,9.76944118]
[1770129677922,12.24506074,102.4,102.36,34.19304414]
[1770129678124,12.24506074,102.41,102.36,35.25088164]
[1770129678333,12.24506074,102.41,102.37,0.91567593]
[1770129678638,12.26217594,102.4,102.36,34.19304414]
[1770129678840,12.26217594,102.4,102.35,10.68591144]
[1770129678841,12.26217594,102.39,102.35,10.68591144]
[1770129679019,0.91908607,102.4,102.35,9.77023551]
[1770129679222,13.18126201,102.4,102.35,47.37407663]
[1770129679438,12.26217594,102.41,102.36,13.17785187]
[1770129679734,12.26217594,102.4,102.37,9.76848686]
[1770129679912,12.26217594,102.39,102.36,9.769124]
[1770129680114,10.6841254,102.41,102.36,9.769124]
[1770129680115,12.26217594,102.4,102.36,9.769124]
[1770129680318,12.26217594,102.39,102.36,9.769124]
[1770129680513,12.26217594,102.38,102.33,37.59753267]
[1770129680929,13.17591832,102.39,102.34,37.59591359]
[1770129681167,12.26217594,102.38,102.35,9.76959675]
[1770129681436,12.26217594,102.39,102.34,13.16854766]
[1770129681636,13.17591832,102.4,102.36,9.76931026]
[1770129681838,12.26217594,102.39,102.36,9.76931026]
[1770129682024,13.17591832,102.39,102.35,9.76995414]
[1770129682938,13.17591832,102.4,102.35,47.36449105]
[1770129683142,13.17591832,102.4,102.35,35.10231511]
[1770129683344,12.26217594,102.39,102.35,35.10231511]
[1770129683847,12.26217594,102.38,102.35,9.76995414]
[1770129684020,12.26217594,102.38,102.34,9.77081086]
[1770129684216,12.26217594,102.37,102.35,9.77034451]
[1770129684527,12.26217594,102.38,102.35,9.77034451]
[1770129684932,12.26217594,102.36,102.33,9.77179674]
[1770129685920,12.26217594,102.35,102.33,9.77179674]
[1770129686119,13.17591832,102.37,102.33,9.77179674]
[1770129686333,12.26217594,102.36,102.32,10.67945181]
[1770129686529,12.26217594,102.34,102.31,9.77372874]
[1770129686757,12.26217594,102.32,102.29,0.1]
[1770129686924,12.26217594,102.33,102.29,25.44601931]
[1770129687127,12.26217594,102.33,102.31,9.77372343]
[1770129687544,12.26217594,102.32,102.29,9.87561806]
[1770129687743,12.26217594,102.31,102.29,9.87561806]
[1770129687937,12.26217594,102.32,102.29,0.1]
[1770129688143,12.26217594,102.31,102.29,0.1]
[1770129688548,0.91374238,102.29,102.25,9.77944848]
[1770129688762,13.17591832,102.31,102.27,9.77803852]
[1770129689050,12.26217594,102.28,102.25,9.77942051]
[1770129689227,12.26217594,102.28,102.24,0.90637172]
[1770129689745,12.26217594,102.27,102.24,9.78053547]
[1770129690046,12.26217594,102.27,102.22,37.82889237]
[1770129690047,12.26217594,102.25,102.22,37.82889237]
[1770129690236,12.26217594,102.24,102.2,0.90637172]
[1770129690436,12.26217594,102.25,102.2,0.90637172]
[1770129690644,12.26217594,102.25,102.21,9.7833089]
[1770129690849,22.04054559,102.27,102.22,10.68903573]
[1770129691027,0.91374238,102.29,102.23,0.90637172]
[1770129691225,12.26217594,102.28,102.23,13.16854766]
[1770129691427,12.26217594,102.28,102.23,0.90637172]
[1770129691747,13.17591832,102.29,102.24,0.90637172]
[1770129691934,13.17591832,102.29,102.24,13.16854766]
[1770129692251,12.26217594,102.3,102.25,10.68632282]
[1770129692427,12.26217594,102.3,102.26,0.90637172]
[1770129692731,10.68844908,102.31,102.25,22.94849876]
[1770129692932,12.26217594,102.3,102.25,10.68632282]
[1770129693151,13.17591832,102.31,102.26,13.16854766]
[1770129693442,12.26217594,102.32,102.27,13.16854766]
[1770129693643,13.17591832,102.33,102.28,0.90637172]
[1770129693829,12.26217594,102.31,102.26,13.16854766]
[1770129694026,12.26217594,102.31,102.27,9.77803852]
[1770129694233,22.95038653,102.31,102.26,10.68487922]
[1770129694542,7.88040722,102.3,102.26,10.68487922]
[1770129694845,18.56861781,102.31,102.26,10.68487922]
[1770129695049,17.65396799,102.32,102.27,0.90637172]
[1770129695229,18.56676639,102.33,102.27,8.78677894]
[1770129695430,7.88040722,102.32,102.27,7.88040722]
[1770129695641,7.88040722,102.29,102.24,8.78677894]
[1770129695852,7.88040722,102.29,102.26,9.77891676]
[1770129696058,7.88040722,102.31,102.26,10.68528848]
[1770129696241,7.88040722,102.33,102.28,0.90637172]
[1770129696433,18.56579574,102.34,102.28,8.78677894]
[1770129696624,8.7941496,102.36,102.31,7.88040722]
[1770129696824,0.91374238,102.36,102.31,0.90637172]
[1770129697138,8.7941496,102.38,102.33,7.88040722]
[1770129697450,0.91374238,102.38,102.33,8.78677894]
[1770129697633,0.91374238,102.38,102.34,7.88040722]
[1770129697950,18.56181492,102.38,102.33,8.78677894]
[1770129698646,0.91374238,102.37,102.32,17.65321874]
[1770129698841,7.88040722,102.35,102.3,7.88040722]
[1770129699046,73.256628,102.38,102.29,9.77527995]
[1770129699047,8.7941496,102.33,102.29,9.77527995]
[1770129699229,8.7941496,102.32,102.28,9.7764565]
[1770129699628,8.7941496,102.34,102.29,8.78677894]
[1770129699847,17.64746685,102.39,102.33,8.78677894]
[1770129700063,8.7941496,102.37,102.32,7.88040722]
[1770129700242,17.6498484,102.36,102.31,37.82013225]
[1770129700431,9.76944118,102.36,102.32,7.88040722]
[1770129700632,8.7941496,102.39,102.34,7.88040722]
[1770129701163,0.91374238,102.38,102.34,7.88040722]
[1770129701346,8.7941496,102.38,102.33,7.88040722]
[1770129701542,0.91374238,102.38,102.35,7.88040722]
[1770129701846,0.91374238,102.38,102.33,8.78677894]
[1770129702051,0.91374238,102.38,102.34,7.88040722]
[1770129702230,10.68156783,102.38,102.34,17.65167583]
[1770129702431,10.68156783,102.38,102.33,7.88040722]
[1770129702432,0.91374238,102.37,102.33,7.88040722]
[1770129702632,8.7941496,102.36,102.31,45.70054347]
[1770129702827,34.18665725,102.38,102.34,9.77110823]
[1770129702828,0.91374238,102.38,102.34,9.77110823]
[1770129703138,10.68133993,102.38,102.34,9.77110823]
[1770129703343,10.68133993,102.38,102.33,25.33673907]
[1770129703344,42.98057895,102.38,102.33,18.55865222]
[1770129703549,0.91374238,102.36,102.32,7.88040722]
[1770129703936,8.7941496,102.36,102.31,18.56050564]
[1770129704134,0.91374238,102.36,102.32,17.65363006]
[1770129704341,0.91374238,102.36,102.33,7.88040722]
[1770129704655,0.91374238,102.36,102.32,7.88040722]
[1770129704854,8.7941496,102.38,102.33,7.88040722]
[1770129705149,10.68077555,102.39,102.35,7.88040722]
[1770129705855,0.91374238,102.36,102.32,7.88040722]
[1770129706230,8.7941496,102.36,102.3,10.68078412]
[1770129706438,10.68509278,102.34,102.3,7.88040722]
[1770129707156,18.5655,102.34,102.29,18.56290563]
[1770129707651,0.91374238,102.32,102.28,17.6572971]
[1770129707849,8.7941496,102.32,102.27,17.65764472]
[1770129708242,34.1997264,102.34,102.24,5.36086188]
[1770129708243,0.91374238,102.3,102.24,5.36086188]
[1770129708558,0.91374238,102.3,102.22,0.90637172]
[1770129708559,0.91374238,102.27,102.23,7.88040722]
[1770129708766,18.57275033,102.27,102.22,8.78677894]
[1770129708939,0.91374238,102.23,102.18,10.69246079]
[1770129709136,8.7941496,102.22,102.17,17.66733203]
[1770129709356,8.7941496,102.2,102.13,11.42548302]
[1770129709559,0.91374238,102.17,102.13,11.42548302]
[1770129709856,0.91374238,102.18,102.14,7.88040722]
[1770129710055,0.91374238,102.21,102.12,0.1]
[1770129710256,0.91374238,102.2,102.15,7.88040722]
[1770129710559,0.84720496,102.19,102.15,7.88040722]
[1770129710738,17.66594074,102.2,102.13,7.88040722]
[1770129710739,0.84720496,102.17,102.13,7.88040722]
[1770129710947,0.84720496,102.16,102.12,17.77221221]
[1770129711139,0.84720496,102.16,102.13,17.67184367]
[1770129711343,0.84720496,102.16,102.14,9.79037698]
[1770129711645,0.84720496,102.16,102.12,7.98040722]
[1770129711844,8.72761218,102.16,102.12,0.1]
[1770129712039,0.84720496,102.16,102.13,9.79088057]
[1770129712258,0.84720496,102.18,102.14,17.67081992]
[1770129712562,18.51426643,102.18,102.13,7.88040722]
[1770129712750,10.63385921,102.18,102.14,7.88040722]
[1770129713668,8.71283931,102.16,102.12,0.1]
[1770129713961,0.83243209,102.16,102.13,7.88040722]
[1770129714156,8.71283931,102.16,102.12,0.1]
[1770129714354,8.71283931,102.16,102.12,9.89231158]
[1770129714556,8.71283931,102.16,102.12,0.1]
[1770129714856,18.49992478,102.18,102.13,7.88040722]
[1770129715045,8.71283931,102.16,102.12,0.1]
[1770129716170,10.61951756,102.18,102.13,7.88040722]
[1770129716358,0.83243209,102.17,102.13,7.88040722]
[1770129716546,18.50140626,102.16,102.12,0.1]
[1770129716748,10.62099904,102.16,102.12,7.98040722]
[1770129716947,0.83243209,102.16,102.12,7.98040722]
[1770129717153,10.6202518,102.17,102.13,7.88040722]
[1770129717360,18.50065902,102.17,102.13,7.88040722]
[1770129717563,0.83243209,102.16,102.12,0.1]
[1770129717870,0.83243209,102.12,102.06,24.81044044]
[1770129718060,8.71283931,102.11,102.07,7.88040722]
[1770129718378,8.71283931,102.11,102.07,17.67705403]
[1770129718379,0.83243209,102.11,102.07,17.67705403]
[1770129718552,0.83243209,102.11,102.07,9.79664681]
[1770129718553,0.83243209,102.1,102.07,9.79664681]
[1770129718753,0.83243209,102.1,102.07,17.67705403]
[1770129719256,0.83243209,102.1,102.06,17.99411932]
[1770129719461,8.71283931,102.1,102.06,10.1137121]
[1770129719658,0.83243209,102.1,102.07,9.79695076]
[1770129719971,8.71283931,102.1,102.06,10.11355368]
[1770129720273,0.83243209,102.11,102.07,17.67745715]
[1770129720450,18.50705764,102.11,102.06,17.99393961]
[1770129720658,7.88040722,102.09,102.06,0.3157738]
[1770129720854,7.88040722,102.08,102.03,8.71997532]
[1770129721185,0.83243209,102.1,102.05,7.88040722]
[1770129721472,8.71283931,102.1,102.06,9.79795532]
[1770129721766,0.83243209,102.09,102.04,18.51952868]
[1770129721976,8.71283931,102.09,102.04,18.51952868]
[1770129722174,7.88040722,102.07,102.04,9.79966918]
[1770129722355,8.71283931,102.08,102.04,9.79966918]
[1770129722966,0.83243209,102.05,102.0,24.50834524]
[1770129723169,8.71283931,102.01,101.98,1.48036071]
[1770129723481,8.71283931,102.01,101.97,9.90673121]
[1770129723482,7.88040722,102.01,101.97,9.90673121]
[1770129723673,7.88040722,102.0,101.97,0.1]
[1770129723866,4.27527085,102.04,101.98,8.71997532]
[1770129724058,7.88040722,102.06,102.02,0.8395681]
[1770129724260,7.88040722,102.05,102.0,8.71997532]
[1770129724570,17.68047425,102.05,102.0,18.52366954]
[1770129724773,9.80006703,102.05,102.0,18.52366954]
[1770129724949,24.49603185,102.06,102.01,8.71997532]
[1770129724950,17.67856516,102.06,102.01,8.71997532]
[1770129725155,14.07342879,102.06,101.99,0.8395681]
[1770129725451,7.88040722,102.01,101.97,0.9395681]
[1770129725670,7.88040722,102.01,101.97,10.74616645]
[1770129726079,4.27527085,102.04,101.97,0.1]
[1770129726264,7.88040722,102.0,101.97,0.1]
[1770129726462,7.88040722,102.01,101.97,10.74634096]
[1770129726780,7.88040722,102.01,101.97,0.9395681]
[1770129727159,7.88040722,101.99,101.97,0.1]
[1770129727452,7.88040722,102.01,101.97,0.9395681]
[1770129727876,7.88040722,102.0,101.97,0.9395681]
[1770129728063,7.88040722,102.0,101.97,0.1]
[1770129728260,4.27527085,102.04,101.99,0.8395681]
[1770129728460,7.88040722,102.02,101.98,0.8395681]
[1770129728977,7.88040722,102.0,101.97,0.1]
[1770129729169,8.27389966,102.02,101.97,8.81997532]
[1770129729380,7.88040722,102.02,101.98,9.80547879]
[1770129729868,7.88040722,102.02,101.98,9.80563272]
[1770129730064,7.88040722,102.02,101.97,8.81997532]
[1770129730276,10.18761106,102.09,102.02,0.8395681]
[1770129730457,7.88040722,102.07,102.02,8.71997532]
[1770129730657,9.79623824,102.08,102.03,18.52101423]
[1770129730858,7.88040722,102.07,102.02,18.52153511]
[1770129731065,7.88040722,102.06,102.02,0.8395681]
[1770129731474,7.88040722,102.05,102.02,0.8395681]
[1770129731683,7.88040722,102.07,102.02,10.6413116]
[1770129731878,7.88040722,102.07,102.02,18.52171882]
[1770129732386,42.16724107,102.08,102.03,8.71997532]
[1770129732571,7.88040722,102.07,102.03,0.8395681]
[1770129732972,9.79815794,102.06,102.02,17.68215072]
[1770129733273,9.79815794,102.06,102.02,18.52171882]
[1770129733677,9.79757512,102.07,102.03,17.68137384]
[1770129733869,9.79643334,102.08,102.04,8.71997532]
[1770129734069,7.88040722,102.07,102.02,18.52155918]
[1770129734265,7.88040722,102.06,102.02,0.8395681]
[1770129734469,7.88040722,102.07,102.02,8.71997532]
[1770129734670,7.88040722,102.07,102.02,18.52140957]
[1770129734878,42.16743617,102.08,102.03,7.88040722]
[1770129735074,42.16743617,102.08,102.02,18.52147835]
[1770129735075,7.88040722,102.07,102.02,18.52147835]
[1770129735367,17.67684056,102.08,102.03,18.52067734]
[1770129735760,7.88040722,102.07,102.02,7.88040722]
[1770129736290,7.88040722,102.07,102.02,18.52188276]
[1770129736882,42.55308272,102.08,102.02,18.52188276]
[1770129737084,8.26498383,102.07,102.02,0.8395681]
[1770129737284,9.79815794,102.06,102.02,10.64142862]
[1770129737488,9.79815794,102.06,102.02,18.52183584]
[1770129737986,9.79752779,102.07,102.03,8.71997532]
[1770129738374,10.17990984,102.08,102.04,7.88040722]
[1770129738684,0.38247346,102.05,102.0,0.8395681]
[1770129738900,8.26288068,102.03,101.97,0.9395681]
[1770129739073,8.26288068,102.02,101.98,9.80536832]
[1770129739268,18.06387701,102.04,101.99,8.71997532]
[1770129739568,17.67996139,102.05,102.0,8.71997532]
[1770129740011,42.17775658,102.05,102.0,8.71997532]
[1770129740289,42.17775658,102.05,102.0,7.88040722]
[1770129740492,42.17775658,102.05,101.99,8.76094189]
[1770129740493,7.92137379,102.04,101.99,8.76094189]
[1770129740684,42.59914149,102.05,102.0,7.92137379]
[1770129740893,7.92137379,102.03,101.99,0.8395681]
[1770129741201,7.92137379,102.02,101.97,18.67205414]
[1770129741492,9.80296049,102.01,101.97,18.67205414]
[1770129741791,34.31036172,102.01,101.97,0.1]
[1770129742091,7.92137379,102.0,101.97,0.1]
[1770129742868,7.92137379,101.99,101.94,7.92137379]
[1770129743074,7.92137379,101.98,101.94,9.80958773]
[1770129743286,18.10336553,102.0,101.95,17.72988899]
[1770129743792,42.61316945,102.0,101.95,18.57426446]
[1770129743991,17.72470026,102.01,101.96,8.76574926]
[1770129744181,7.92137379,102.0,101.95,9.8085152]
[1770129744384,7.92137379,101.99,101.95,10.65289067]
[1770129744695,7.92137379,101.99,101.94,32.44512234]
[1770129744696,7.92137379,101.98,101.93,18.57613006]
[1770129745366,9.80680592,101.97,101.93,18.57613006]
[1770129745572,8.29590415,101.95,101.9,33.29868268]
[1770129745767,34.69835108,101.97,101.91,8.76574926]
[1770129745994,7.92137379,101.96,101.91,18.57798483]
[1770129746178,8.29590415,101.96,101.91,0.84437547]
[1770129746373,0.37453036,101.96,101.91,8.76574926]
[1770129746597,42.61972487,101.97,101.92,7.92137379]
[1770129746895,7.92137379,101.94,101.89,18.57986865]
[1770129747202,7.92137379,101.92,101.87,8.86574926]
[1770129747374,0.2735881,101.88,101.85,2.78792417]
[1770129747573,0.2735881,101.88,101.84,13.31814645]
[1770129747574,7.92137379,101.86,101.84,13.31814645]
[1770129747776,7.92137379,101.87,101.84,13.31814645]
[1770129748097,39.2427813,101.93,101.87,0.87538626]
[1770129748098,14.03373805,101.93,101.87,0.87538626]
[1770129748270,6.11236426,101.93,101.9,8.79676005]
[1770129748470,6.11236426,101.93,101.91,7.92137379]
[1770129748716,7.92137379,101.97,101.92,8.79676005]
[1770129748880,7.92137379,101.99,101.94,7.92137379]
[1770129749081,7.92137379,101.97,101.92,0.87538626]
[1770129749281,9.80680592,101.97,101.93,7.92137379]
[1770129749488,42.24519451,101.97,101.92,0.87538626]
[1770129749691,9.80680592,101.97,101.93,7.92137379]
[1770129750088,6.10027059,102.01,101.94,0.87538626]
[1770129750287,9.80392156,102.0,101.96,8.79676005]
[1770129750576,15.90367202,102.01,101.97,0.87538626]
[1770129750984,15.90367202,102.01,101.93,8.79676005]
[1770129750985,7.92137379,101.98,101.93,8.79676005]
[1770129751179,48.33244704,102.01,101.95,0.87538626]
[1770129751395,9.80488283,101.99,101.93,8.79676005]
[1770129751598,7.92137379,101.96,101.91,7.92137379]
[1770129751898,7.92137379,101.92,101.87,7.92137379]
[1770129752099,7.92137379,101.94,101.89,7.92137379]
[1770129752296,7.92137379,101.92,101.87,9.81600921]
[1770129752477,7.92137379,101.91,101.87,9.81600921]
[1770129752682,7.92137379,101.93,101.88,17.73618537]
[1770129752879,7.92137379,101.93,101.88,7.92137379]
[1770129753086,7.92137379,101.9,101.85,17.73936157]
[1770129753285,9.81257972,101.91,101.85,17.73946056]
[1770129753492,7.92137379,101.9,101.85,17.73946056]
[1770129753688,28.0800808,101.96,101.89,8.76574926]
[1770129754003,17.72529535,102.0,101.95,8.76574926]
[1770129754186,9.80392156,102.0,101.95,0.84437547]
[1770129754386,34.31372548,102.0,101.95,0.84437547]
[1770129754585,73.52941175,102.0,101.93,0.84437547]
[1770129754798,7.92137379,101.97,101.93,0.84437547]
[1770129754993,7.92137379,101.99,101.95,7.92137379]
[1770129755207,7.92137379,101.99,101.95,0.84437547]
[1770129755588,9.80515964,101.99,101.95,8.76574926]
[1770129755784,17.72653343,101.99,101.95,0.84437547]
[1770129755983,7.92137379,101.98,101.95,0.84437547]
[1770129756302,7.92137379,101.98,101.94,0.84437547]
[1770129756497,17.72653343,101.99,101.95,0.84437547]
[1770129756700,30.6094306,102.01,101.96,0.84437547]
[1770129756701,9.80432182,102.0,101.96,0.84437547]
[1770129756883,7.92137379,101.99,101.96,0.84437547]
[1770129757080,7.92137379,101.98,101.94,0.84437547]
[1770129757393,7.92137379,101.96,101.92,10.65575316]
[1770129757595,7.92137379,101.95,101.9,25.37718776]
[1770129757793,7.92137379,101.95,101.91,0.84437547]
[1770129757993,7.92137379,101.97,101.93,0.84437547]
[1770129758386,7.92137379,101.96,101.93,0.84437547]
[1770129758583,7.92137379,101.95,101.91,0.84437547]
[1770129758800,0.8400808,101.98,101.89,0.84437547]
[1770129758801,7.92137379,101.93,101.89,0.84437547]
[1770129759099,7.92137379,101.98,101.93,0.84437547]
[1770129759301,7.92137379,101.97,101.93,0.84437547]
[1770129759601,34.3172654,101.99,101.91,0.84437547]
[1770129759602,7.92137379,101.94,101.91,0.84437547]
[1770129760194,34.32780174,101.96,101.91,0.84437547]
[1770129760195,7.92137379,101.96,101.92,0.84437547]
[1770129760589,7.92137379,101.97,101.93,0.84437547]
[1770129760902,0.8400808,101.99,101.92,7.92137379]
[1770129760903,6.10027059,102.01,101.97,0.84437547]
[1770129761092,14.02164438,102.01,101.97,0.84437547]
[1770129761290,7.92137379,102.0,101.97,0.84437547]
[1770129761618,7.92137379,101.99,101.97,0.84437547]
[1770129761787,7.92137379,102.0,101.97,0.84437547]
[1770129761988,7.92137379,101.99,101.97,0.84437547]
[1770129762195,10.64400453,102.0,101.93,0.84437547]
[1770129762506,7.92137379,101.98,101.95,9.80860132]
[1770129762810,35.15380845,102.0,101.97,0.84437547]
[1770129762811,7.92137379,102.0,101.97,0.84437547]
[1770129763187,7.92137379,101.98,101.95,10.65270954]
[1770129763503,7.92137379,101.98,101.95,0.84437547]
[1770129763709,7.92137379,101.97,101.93,0.84437547]
[1770129764003,7.92137379,101.97,101.94,0.84437547]
[1770129764195,7.05152418,101.95,101.94,0.84437547]
[1770129764394,7.92137379,101.96,101.94,0.84437547]
[1770129764598,10.64536469,101.99,101.92,25.37158085]
[1770129764599,7.92137379,101.95,101.92,25.37158085]
[1770129764798,7.92137379,101.96,101.93,0.84437547]
[1770129765306,7.05152418,101.95,101.93,0.84437547]
[1770129765602,6.18167457,101.95,101.91,9.81257972]
[1770129765795,7.92137379,101.96,101.91,34.34402903]
[1770129766107,7.92137379,101.96,101.91,42.26540282]
[1770129766306,7.92137379,101.97,101.92,0.28432314]
[1770129766610,7.92137379,101.96,101.92,27.24]
[1770129766786,7.92137379,101.97,101.92,27.24]
[1770129767101,7.92137379,101.98,101.92,35.44569693]
[1770129767296,7.92137379,101.99,101.92,0.28432314]
[1770129767497,7.92137379,101.99,101.93,35.16137379]
[1770129767708,27.24,102.03,101.93,35.16137379]
[1770129767709,0.86708128,102.04,101.97,7.92137379]
[1770129768003,7.92137379,102.01,101.96,35.44569693]
[1770129768305,7.92137379,102.02,101.97,7.92137379]
[1770129768603,7.92137379,102.02,101.96,27.52432314]
[1770129768604,7.92137379,102.02,101.96,35.44569693]
[1770129768805,7.92137379,102.02,101.97,7.92137379]
[1770129769007,7.92137379,102.02,101.98,27.24]
[1770129769200,8.78845507,102.03,101.98,27.24]
[1770129769585,7.92137379,102.04,101.98,35.16137379]
[1770129769786,10.66660802,102.05,102.0,34.31372548]
[1770129769787,8.78845507,102.05,102.0,34.31372548]
[1770129770009,105.59315216,102.11,102.04,7.92137379]
[1770129770010,0.86708128,102.11,102.04,7.92137379]
[1770129770198,6.08579235,102.17,102.08,8.76574926]
[1770129770399,6.08579235,102.17,102.06,0.28432314]
[1770129770400,7.92137379,102.13,102.06,0.28432314]
[1770129770707,7.92137379,102.11,102.06,7.92137379]
[1770129771004,7.92137379,102.12,102.07,7.92137379]
[1770129771381,122.91903261,102.17,102.05,0.83271759]
[1770129771382,7.92137379,102.1,102.05,7.92137379]
[1770129771586,7.92137379,102.09,102.04,35.16137379]
[1770129771807,7.92137379,102.07,101.99,0.83271759]
[1770129772005,9.79567996,102.09,101.99,0.83271759]
[1770129772006,7.92137379,102.04,102.0,27.24]
[1770129772304,7.92137379,102.05,102.02,9.80121174]
[1770129772504,8.74137675,102.04,101.99,7.92137379]
[1770129772709,0.82000296,102.04,102.02,9.80188745]
[1770129773109,8.79976643,102.08,102.04,9.7998905]
[1770129773608,8.79976643,102.07,102.02,7.92137379]
[1770129773808,18.59818906,102.06,102.02,9.8014733]
[1770129774114,18.59818906,102.06,102.01,17.72398791]
[1770129774411,0.87839264,102.02,101.98,17.7268622]
[1770129774605,7.92137379,102.02,101.99,9.80483397]
[1770129774783,8.79976643,102.02,101.97,17.72799393]
[1770129774984,8.79976643,102.02,101.97,7.92137379]
[1770129775190,120.60045484,102.06,101.95,7.92137379]
[1770129775191,0.87839264,101.99,101.95,7.92137379]
[1770129775796,18.60583547,101.98,101.93,17.73202816]
[1770129776090,0.87839264,101.99,101.95,7.92137379]